bitfinex/quotes_BTCUSD_20220212
["timestamp","ask_amount","ask_price","bid_price","bid_amount"]
[1644696730078,0.08333289,42654.0,42650.0,0.288624]
[1644696730477,0.08333289,42654.0,42650.0,0.28918482]
[1644696730677,0.08333289,42654.0,42651.0,0.05862]
[1644696732625,0.00056072,42657.0,42651.0,0.05862]
[1644696732830,0.00021889,42661.0,42653.0,0.058613]
[1644696733030,0.00056072,42657.0,42656.0,0.058609]
[1644696733926,0.00056072,42657.0,42656.0,0.32183134]
[1644696734127,0.00056072,42659.0,42656.0,0.058609]
[1644696735229,0.00021889,42661.0,42656.0,0.058609]
[1644696735483,0.38714831,42662.0,42656.0,0.058609]
[1644696735484,0.00056072,42660.0,42656.0,0.058609]
[1644696736380,0.00021889,42661.0,42656.0,0.058609]
[1644696736582,0.00056071,42660.0,42656.0,0.058609]
[1644696737580,0.00021889,42661.0,42656.0,0.058609]
[1644696737781,0.00056071,42660.0,42656.0,0.058609]
[1644696738883,0.00021889,42661.0,42656.0,0.058609]
[1644696739128,0.00056071,42660.0,42656.0,0.058609]
[1644696739724,0.00056071,42660.0,42656.0,0.117217]
[1644696739924,0.00021889,42661.0,42656.0,0.117217]
[1644696740124,0.24402512,42662.0,42656.0,0.117217]
[1644696740426,0.00056071,42660.0,42656.0,0.117217]
[1644696741223,0.24424401,42662.0,42656.0,0.117217]
[1644696741423,0.00056071,42660.0,42656.0,0.117217]
[1644696742427,0.24424401,42662.0,42656.0,0.058609]
[1644696742626,0.00056071,42660.0,42656.0,0.058609]
[1644696743483,0.24424401,42662.0,42656.0,0.058609]
[1644696743885,0.00056071,42660.0,42656.0,0.058609]
[1644696744684,0.2204421,42657.0,42656.0,0.058609]
[1644696744885,0.2204421,42657.0,42654.0,0.117211]
[1644696745087,0.2204421,42657.0,42652.0,0.00056082]
[1644696745587,0.07431049,42656.0,42652.0,0.00056082]
[1644696745988,0.07431049,42656.0,42649.0,0.117242]
[1644696746186,0.07431049,42656.0,42652.0,0.0005608]
[1644696747228,0.07431049,42656.0,42649.0,0.117242]
[1644696747529,0.07431049,42656.0,42652.0,0.0005608]
[1644696748335,0.07431049,42656.0,42649.0,0.117242]
[1644696748531,0.07431049,42656.0,42652.0,0.0005608]
[1644696748732,0.35887241,42656.0,42652.0,0.0005608]
[1644696748933,0.07431049,42656.0,42652.0,0.0005608]
[1644696749133,0.28229769,42656.0,42652.0,0.0005608]
[1644696749534,0.28229769,42656.0,42649.0,0.117242]
[1644696749935,0.28229769,42656.0,42652.0,0.0005608]
[1644696750136,0.56738279,42656.0,42652.0,0.0005608]
[1644696750380,0.28229769,42656.0,42652.0,0.0005608]
[1644696750579,0.07431049,42656.0,42653.0,0.058618]
[1644696750778,0.2204421,42657.0,42653.0,0.058618]
[1644696751081,0.22100283,42657.0,42653.0,0.058618]
[1644696751681,0.06536473,42656.0,42653.0,0.058618]
[1644696752680,0.06536473,42656.0,42653.0,0.117228]
[1644696752881,0.06536473,42656.0,42654.0,0.117212]
[1644696753080,0.06536473,42656.0,42655.0,0.117213]
[1644696753483,0.24402512,42662.0,42655.0,0.38272855]
[1644696753685,0.00056074,42657.0,42655.0,0.38272855]
[1644696753884,0.00056074,42657.0,42656.0,0.33124215]
[1644696754136,0.00056074,42657.0,42656.0,0.38124215]
[1644696754328,0.00056074,42657.0,42656.0,0.35507968]
[1644696754526,0.24402512,42662.0,42657.0,0.058603]
[1644696754730,0.00056072,42659.0,42657.0,0.058603]
[1644696754927,0.00056072,42659.0,42658.0,0.2770994]
[1644696755526,0.18658584,42662.0,42658.0,0.2770994]
[1644696755728,0.18658584,42662.0,42657.0,0.058603]
[1644696755929,0.18658584,42662.0,42657.0,0.053603]
[1644696758376,0.20383092,42661.0,42657.0,0.053603]
[1644696758578,0.20383092,42661.0,42655.0,0.117213]
[1644696759178,0.18658584,42662.0,42655.0,0.117213]
[1644696759376,0.18658584,42662.0,42655.0,0.11781517]
[1644696759577,0.00060208,42661.0,42655.0,0.11781517]
[1644696759978,0.00060208,42661.0,42655.0,0.23502917]
[1644696760179,0.00060208,42661.0,42657.0,0.117213]
[1644696760483,0.18658584,42662.0,42657.0,0.117213]
[1644696760878,0.00060208,42661.0,42658.0,0.058602]
[1644696761732,0.18658584,42662.0,42658.0,0.058602]
[1644696761926,0.18679719,42662.0,42658.0,0.058602]
[1644696762927,0.18658584,42662.0,42658.0,0.058602]
[1644696763127,0.18679719,42662.0,42658.0,0.058602]
[1644696764132,0.18658584,42662.0,42658.0,0.058602]
[1644696764331,0.18679735,42662.0,42658.0,0.058602]
[1644696765133,0.18658584,42662.0,42658.0,0.058602]
[1644696765371,0.18679735,42662.0,42658.0,0.058602]
[1644696766473,0.18658584,42662.0,42658.0,0.058602]
[1644696766674,0.18679735,42662.0,42658.0,0.058602]
[1644696767672,0.18658584,42662.0,42658.0,0.058602]
[1644696767873,0.18718823,42662.0,42658.0,0.058602]
[1644696768476,0.18718823,42662.0,42659.0,0.058606]
[1644696768874,0.18718823,42662.0,42655.0,0.117214]
[1644696768875,0.2207999,42660.0,42655.0,0.117214]
[1644696769523,0.07126278,42659.0,42655.0,0.117214]
[1644696769725,0.07126278,42659.0,42655.0,0.175829]
[1644696772427,0.18658584,42662.0,42657.0,0.117213]
[1644696772628,0.00060292,42661.0,42657.0,0.117213]
[1644696773675,0.18658584,42662.0,42657.0,0.117213]
[1644696773676,0.27032352,42662.0,42657.0,0.117213]
[1644696773875,0.00060293,42661.0,42657.0,0.117213]
[1644696774876,0.27032352,42662.0,42658.0,0.058605]
[1644696775076,0.00060293,42661.0,42658.0,0.058605]
[1644696776077,0.27032352,42662.0,42658.0,0.058605]
[1644696776377,0.18718876,42662.0,42658.0,0.058605]
[1644696777226,0.18658584,42662.0,42658.0,0.058605]
[1644696777427,0.18718876,42662.0,42658.0,0.058605]
[1644696778430,0.18658584,42662.0,42658.0,0.058605]
[1644696778629,0.18718876,42662.0,42658.0,0.058605]
[1644696779228,0.18718876,42662.0,42658.0,0.108605]
[1644696779631,0.18658584,42662.0,42658.0,0.108605]
[1644696779829,0.18718876,42662.0,42658.0,0.338605]
[1644696780231,0.18718876,42662.0,42658.0,0.438605]
[1644696780978,0.18651254,42662.0,42658.0,0.60452119]
[1644696781176,0.18707124,42662.0,42658.0,0.60452119]
[1644696781377,0.18707124,42662.0,42660.0,0.1900571]
[1644696781578,0.18707124,42662.0,42661.0,0.058601]
[1644696781979,0.18651254,42662.0,42661.0,0.058601]
[1644696789780,0.18651254,42662.0,42658.0,0.23]
[1644696790780,0.07670176,42660.0,42658.0,0.23]
[1644696792229,0.00056265,42661.0,42659.0,0.058606]
[1644696792829,0.18651254,42662.0,42659.0,0.058606]
[1644696793029,0.18707522,42662.0,42659.0,0.058606]
[1644696794030,0.18651254,42662.0,42659.0,0.058606]
[1644696795382,0.18651254,42662.0,42660.0,0.058601]
[1644696799429,0.18651254,42662.0,42660.0,0.3455292]
[1644696799632,0.18651254,42662.0,42660.0,0.3955292]
[1644696799828,0.18651254,42662.0,42661.0,0.03541601]
[1644696800128,1.1476,42681.0,42663.0,0.16513211]
[1644696800129,0.00021954,42668.0,42663.0,0.16513211]
[1644696800427,0.00225023,42672.0,42668.0,0.22319265]
[1644696800635,0.00225023,42672.0,42667.0,0.117171]
[1644696801228,0.07145059,42678.0,42667.0,0.117171]
[1644696801431,0.0005626,42672.0,42667.0,0.117171]
[1644696802027,0.0005626,42672.0,42670.0,0.058586]
[1644696802326,0.0005626,42672.0,42670.0,0.117173]
[1644696802528,0.01,42679.0,42670.0,0.117173]
[1644696802731,0.00056259,42673.0,42670.0,0.117173]
[1644696802980,0.00056259,42673.0,42670.0,0.058586]
[1644696803380,0.00056259,42673.0,42672.0,0.058589]
[1644696803582,0.01,42679.0,42672.0,0.058589]
[1644696803781,0.07439915,42675.0,42672.0,0.058589]
[1644696803982,0.00056258,42674.0,42672.0,0.058589]
[1644696804783,0.00021997,42678.0,42672.0,0.058589]
[1644696804983,0.00021997,42675.0,42672.0,0.058589]
[1644696805184,0.00056257,42675.0,42672.0,0.058589]
[1644696805786,0.22398232,42673.0,42672.0,0.058589]
[1644696806829,0.00021997,42675.0,42672.0,0.058589]
[1644696807030,0.00056257,42676.0,42672.0,0.058589]
[1644696807330,0.00021997,42676.0,42672.0,0.058589]
[1644696807529,0.00056257,42676.0,42672.0,0.058589]
[1644696807929,0.00078254,42676.0,42672.0,0.058589]
[1644696808130,0.00056257,42676.0,42672.0,0.058589]
[1644696808332,0.21739385,42675.0,42672.0,0.058589]
[1644696809533,0.30210933,42675.0,42672.0,0.058589]
[1644696810134,0.00078254,42676.0,42672.0,0.058589]
[1644696810385,0.00056257,42676.0,42672.0,0.058589]
[1644696810685,0.00056257,42676.0,42672.0,0.175744]
[1644696810889,0.00021997,42676.0,42673.0,0.00603967]
[1644696811083,0.00017644,42676.0,42673.0,0.00603967]
[1644696811284,0.00017644,42676.0,42673.0,0.23792175]
[1644696812186,0.34354347,42687.0,42673.0,0.29649875]
[1644696812384,0.00070567,42683.0,42677.0,0.117154]
[1644696813383,0.35732012,42686.0,42677.0,0.117154]
[1644696813586,0.00017644,42682.0,42677.0,0.117154]
[1644696814228,0.20940472,42682.0,42677.0,0.117154]
[1644696814429,0.20922828,42682.0,42677.0,0.117154]
[1644696814826,0.20979619,42682.0,42677.0,0.117154]
[1644696815628,0.20922828,42682.0,42677.0,0.117154]
[1644696816234,0.20981966,42682.0,42677.0,0.117154]
[1644696816831,0.20922828,42682.0,42677.0,0.117154]
[1644696817231,0.20981966,42682.0,42677.0,0.117154]
[1644696818084,0.07228517,42686.0,42677.0,0.117154]
[1644696818282,0.001,42688.0,42677.0,0.117154]
[1644696818484,0.00059138,42682.0,42678.0,0.058575]
[1644696819284,0.2669479,42686.0,42678.0,0.058575]
[1644696819485,0.00054222,42682.0,42678.0,0.058575]
[1644696820482,0.2669479,42686.0,42678.0,0.058575]
[1644696820685,0.00054222,42682.0,42678.0,0.058575]
[1644696821730,0.2669479,42686.0,42678.0,0.058575]
[1644696821928,0.00054222,42682.0,42678.0,0.058575]
[1644696822929,0.2669479,42686.0,42678.0,0.058575]
[1644696823129,0.2669479,42686.0,42677.0,0.117154]
[1644696823130,0.00052722,42682.0,42677.0,0.117154]
[1644696823930,0.08430048,42678.0,42677.0,0.117154]
[1644696824330,0.00052723,42682.0,42677.0,0.117154]
[1644696824533,0.00052723,42682.0,42677.0,0.175732]
[1644696825380,0.2669479,42686.0,42677.0,0.175732]
[1644696825381,0.08162107,42685.0,42677.0,0.175732]
[1644696825581,0.00052723,42682.0,42677.0,0.175732]
[1644696826381,0.2421691,42678.0,42677.0,0.175732]
[1644696826684,0.30693545,42678.0,42677.0,0.117154]
[1644696827081,0.00052874,42682.0,42677.0,0.117154]
[1644696827282,0.00052874,42682.0,42677.0,0.175732]
[1644696827682,0.301,42688.0,42677.0,0.175732]
[1644696827883,0.00017757,42682.0,42677.0,0.175732]
[1644696828282,0.00039751,42682.0,42677.0,0.175732]
[1644696828483,0.00017757,42682.0,42677.0,0.175732]
[1644696828682,0.00039751,42682.0,42677.0,0.175732]
[1644696828883,0.23266066,42683.0,42677.0,0.175732]
[1644696829138,0.00039751,42682.0,42677.0,0.175732]
[1644696829340,0.00017757,42682.0,42677.0,0.175732]
[1644696829533,0.00039751,42682.0,42677.0,0.225732]
[1644696829733,0.00017757,42682.0,42677.0,0.275732]
[1644696829934,0.00039751,42682.0,42677.0,0.275732]
[1644696830234,0.23266066,42683.0,42677.0,0.175732]
[1644696830436,0.00059181,42682.0,42677.0,0.175732]
[1644696830634,0.00081175,42682.0,42677.0,0.275732]
[1644696831235,0.08640846,42685.0,42677.0,0.275732]
[1644696831637,0.00059181,42682.0,42677.0,0.275732]
[1644696832038,0.25460676,42678.0,42677.0,0.175732]
[1644696832337,0.20460676,42678.0,42677.0,0.058577]
[1644696832541,0.20454676,42678.0,42676.0,0.117154]
[1644696833383,0.06496298,42677.0,42676.0,0.117154]
[1644696837228,0.00078657,42679.0,42676.0,0.117154]
[1644696837427,0.24079548,42680.0,42676.0,0.117154]
[1644696837629,0.00056832,42679.0,42676.0,0.117154]
[1644696838628,0.24079548,42680.0,42676.0,0.117154]
[1644696838830,0.08623381,42679.0,42676.0,0.117154]
[1644696839028,0.08123381,42679.0,42676.0,0.117154]
[1644696840780,0.08123381,42679.0,42677.0,0.058576]
[1644696841392,0.08123381,42679.0,42678.0,0.117153]
[1644696844329,0.00017704,42681.0,42678.0,0.117153]
[1644696844533,0.00021994,42681.0,42679.0,0.04122815]
[1644696844737,0.00017704,42681.0,42678.0,0.16364482]
[1644696845131,0.00017704,42681.0,42678.0,0.12319165]
[1644696845733,0.00021994,42684.0,42677.0,0.117153]
[1644696845932,0.35145899,42676.0,42673.0,0.347161]
[1644696846133,0.35145899,42676.0,42673.0,0.23]
[1644696846732,0.28890272,42675.0,42673.0,0.23]
[1644696846932,0.35145899,42676.0,42673.0,0.23]
[1644696847132,0.64420333,42676.0,42673.0,0.23]
[1644696847335,0.64398339,42676.0,42673.0,0.23]
[1644696847632,0.07406636,42675.0,42673.0,0.23]
[1644696847889,0.07406636,42675.0,42674.0,0.40016724]
[1644696848485,0.35145899,42676.0,42674.0,0.40016724]
[1644696848486,0.35205138,42676.0,42674.0,0.37016724]
[1644696848686,0.35205138,42676.0,42675.0,0.34331488]
[1644696849285,0.35145899,42676.0,42675.0,0.34331488]
[1644696849987,0.35145899,42676.0,42675.0,0.058575]
[1644696850786,0.35145899,42676.0,42675.0,0.32343284]
[1644696850989,0.35145899,42676.0,42675.0,0.058575]
[1644696851849,0.35145899,42676.0,42673.0,0.23]
[1644696851850,0.60583878,42676.0,42673.0,0.23]
[1644696853649,0.60583878,42676.0,42668.0,0.14507607]
[1644696853852,0.60605872,42676.0,42667.0,0.20367307]
[1644696854149,0.67994872,42676.0,42663.0,0.3]
[1644696854349,0.42556893,42676.0,42663.0,0.3]
[1644696854550,0.08364184,42664.0,42663.0,0.3]
[1644696854748,0.08364184,42664.0,42662.0,0.18165199]
[1644696855149,0.08364184,42664.0,42663.0,0.058599]
[1644696855384,0.08364184,42664.0,42662.0,0.12305299]
[1644696857084,0.08364184,42664.0,42662.0,0.35305299]
[1644696859736,0.08364184,42664.0,42662.0,0.41165299]
[1644696861437,0.21420949,42663.0,42662.0,0.35305299]
[1644696862034,0.08364184,42664.0,42662.0,0.35305299]
[1644696863084,0.29781979,42664.0,42662.0,0.35305299]
[1644696863884,0.08364184,42664.0,42662.0,0.35305299]
[1644696871586,0.22188464,42663.0,42662.0,0.35305299]
[1644696872682,0.21688464,42663.0,42662.0,0.35305299]
[1644696874544,0.08364184,42664.0,42662.0,0.35305299]
[1644696877747,0.08364184,42664.0,42663.0,0.058595]
[1644696878487,0.08364184,42664.0,42663.0,0.32062999]
[1644696880086,0.47599372,42673.0,42663.0,0.32062999]
[1644696880287,4.07801562,42686.0,42666.0,0.058592]
[1644696880288,0.05,42682.0,42666.0,0.058592]
[1644696880496,0.35167893,42676.0,42669.0,0.05859]
[1644696880691,0.35145899,42676.0,42669.0,0.06462841]
[1644696880889,0.35145899,42676.0,42671.0,0.03855416]
[1644696881093,0.35145899,42676.0,42672.0,0.10516868]
[1644696881287,0.35145899,42676.0,42672.0,0.21109522]
[1644696881490,0.33875899,42676.0,42672.0,0.24876439]
[1644696882159,0.33875899,42676.0,42673.0,0.058582]
[1644696888592,0.32875899,42676.0,42673.0,0.058582]
[1644696890347,0.37875899,42676.0,42669.0,0.058594]
[1644696890550,0.37875899,42676.0,42663.0,0.56226607]
[1644696890551,0.44157899,42676.0,42663.0,0.56226607]
[1644696890749,0.44157899,42676.0,42662.0,0.00585999]
[1644696891151,2.70587468,42676.0,42662.0,0.00585999]
[1644696891348,2.65587468,42676.0,42662.0,0.00585999]
[1644696891548,0.39157899,42676.0,42670.0,0.23]
[1644696891752,0.00056222,42671.0,42670.0,0.23]
[1644696892648,0.32875899,42676.0,42670.0,0.23]
[1644696892883,0.00056221,42673.0,42670.0,0.288588]
[1644696893285,0.00056221,42673.0,42670.0,0.405757]
[1644696893686,0.00056221,42673.0,42671.0,0.27606382]
[1644696893886,0.07298224,42672.0,42671.0,0.27606382]
[1644696894487,0.32432119,42676.0,42671.0,0.27606382]
[1644696895987,0.06813237,42675.0,42671.0,0.27606382]
[1644696897433,0.06813237,42675.0,42670.0,0.405757]
[1644696897633,0.06813237,42675.0,42670.0,0.347169]
[1644696898033,0.06813237,42675.0,42671.0,0.058587]
[1644696902695,0.06813237,42675.0,42672.0,0.058584]
[1644696902911,0.32492482,42676.0,42672.0,0.058584]
[1644696903099,0.32492482,42676.0,42672.0,0.225743]
[1644696903294,0.32492482,42676.0,42673.0,0.053576]
[1644696903495,0.32492482,42676.0,42674.0,0.30365303]
[1644696903695,0.32432119,42676.0,42674.0,0.30365303]
[1644696903896,0.32492482,42676.0,42674.0,0.30365303]
[1644696904745,0.26634119,42676.0,42674.0,0.30365303]
[1644696906740,0.26634119,42676.0,42674.0,0.67935603]
[1644696906939,0.00021994,42683.0,42675.0,0.57968461]
[1644696907139,0.101,42690.0,42676.0,0.04497796]
[1644696907140,0.00021994,42684.0,42676.0,0.04497796]
[1644696907347,0.00021994,42686.0,42678.0,0.175684]
[1644696907542,0.00263388,42687.0,42681.0,0.25135619]
[1644696907740,0.00021994,42686.0,42682.0,0.27712749]
[1644696907984,0.00263388,42687.0,42682.0,0.39424649]
[1644696908285,0.00021994,42686.0,42683.0,0.09426896]
[1644696908584,0.0121,42689.0,42683.0,0.09426896]
[1644696908585,0.00021994,42687.0,42683.0,0.09426896]
[1644696908784,0.00121994,42688.0,42683.0,0.09426896]
[1644696908985,0.00021994,42687.0,42683.0,0.21138896]
[1644696909184,0.05987389,42686.0,42683.0,0.2198282]
[1644696909386,0.05987389,42685.0,42683.0,0.21309019]
[1644696909585,0.05987389,42685.0,42684.0,0.27153409]
[1644696910986,0.05987389,42685.0,42683.0,0.175681]
[1644696913538,0.05987389,42685.0,42683.0,0.405681]
[1644696914338,0.00021994,42686.0,42683.0,0.405681]
[1644696914539,0.11974778,42684.0,42683.0,0.405681]
[1644696915782,0.11974778,42684.0,42683.0,0.505681]
[1644696915981,0.11974778,42684.0,42683.0,0.605681]
[1644696917182,0.11974778,42684.0,42683.0,0.600681]
[1644696920130,0.11974778,42684.0,42683.0,0.60182107]
[1644696920336,0.11389063,42684.0,42683.0,0.60182107]
[1644696920532,0.05987389,42684.0,42683.0,0.60182107]
[1644696920733,0.11389063,42684.0,42683.0,0.60182107]
[1644696922734,0.11389063,42684.0,42683.0,0.50182107]
[1644696922985,0.11389063,42684.0,42683.0,0.60182107]
[1644696928831,0.11389063,42684.0,42683.0,0.87431205]
[1644696929030,0.11389063,42684.0,42683.0,0.77431205]
[1644696929229,0.11389063,42684.0,42683.0,0.87431205]
[1644696929429,0.11389063,42684.0,42683.0,0.60182107]
[1644696930029,0.11389063,42684.0,42683.0,0.40182107]
[1644696930235,0.11389063,42684.0,42683.0,0.28970107]
[1644696930490,0.11389063,42684.0,42683.0,0.23114007]
[1644696932891,0.11389063,42684.0,42675.0,0.117156]
[1644696932892,0.30070622,42680.0,42675.0,0.117156]
[1644696933092,0.30070622,42680.0,42673.0,0.00059186]
[1644696933496,0.11389063,42676.0,42671.0,0.232662]
[1644696933691,0.11389063,42676.0,42671.0,0.117162]
[1644696933891,0.11389063,42676.0,42673.0,0.00059183]
[1644696934145,0.06702062,42675.0,42673.0,0.00059183]
[1644696934737,0.06702062,42675.0,42670.0,0.117169]
[1644696935340,0.06702062,42675.0,42667.0,0.117173]
[1644696935639,0.06973177,42667.0,42666.0,0.058596]
[1644696937039,0.06973177,42667.0,42666.0,0.288596]
[1644696938893,0.1836224,42667.0,42666.0,0.288596]
[1644696940800,0.11389063,42667.0,42666.0,0.288596]
[1644696940998,0.11389063,42667.0,42666.0,0.5680162]
[1644696941402,0.10889063,42667.0,42666.0,0.5680162]
[1644696943740,0.05401674,42667.0,42666.0,0.5680162]
[1644696944038,0.10889063,42667.0,42666.0,0.5680162]
[1644696944638,0.10889063,42667.0,42666.0,0.6680162]
[1644696944839,0.10889063,42667.0,42666.0,0.77405672]
[1644696945240,0.10889063,42667.0,42666.0,0.91893328]
[1644696946091,0.10889063,42667.0,42666.0,0.92007224]
[1644696946995,0.10889063,42667.0,42666.0,0.71403172]
[1644696947393,0.10889063,42667.0,42666.0,0.56915516]
[1644696952537,0.10389063,42667.0,42666.0,0.56915516]
[1644696952889,0.05487389,42667.0,42666.0,0.56915516]
[1644696953088,0.10389063,42667.0,42666.0,0.56915516]
[1644696953491,0.04439063,42667.0,42666.0,0.56915516]
[1644696955894,0.04439063,42667.0,42666.0,0.61915516]
[1644696956094,0.04439063,42667.0,42666.0,0.71856411]
[1644696956741,0.04439063,42667.0,42666.0,0.86344067]
[1644696957136,0.04439063,42667.0,42666.0,0.81403172]
[1644696957537,0.04439063,42667.0,42666.0,0.66915516]
[1644696958338,0.08933956,42677.0,42668.0,0.058587]
[1644696958636,0.08933956,42677.0,42671.0,0.058588]
[1644696959038,0.08933956,42677.0,42667.0,0.117173]
[1644696959240,0.08933956,42677.0,42666.0,0.23113896]
[1644696959241,0.27499111,42676.0,42666.0,0.23113896]
[1644696959638,0.21598603,42672.0,42667.0,0.058594]
[1644696960139,0.06488938,42668.0,42667.0,0.058594]
[1644696960608,0.27499111,42676.0,42667.0,0.058594]
[1644696960810,0.23279442,42678.0,42668.0,0.05859]
[1644696961411,0.23279442,42678.0,42671.0,0.00060273]
[1644696961610,0.4399648,42678.0,42671.0,0.00060273]
[1644696961813,0.08226376,42674.0,42671.0,0.00060273]
[1644696962011,0.23279442,42678.0,42672.0,0.058584]
[1644696962211,0.00060262,42679.0,42672.0,0.058584]
[1644696962413,0.24704257,42688.0,42672.0,0.058584]
[1644696962612,0.24704257,42688.0,42673.0,0.00060272]
[1644696962813,0.19080521,42677.0,42673.0,0.00060272]
[1644696963713,0.0875466,42673.0,42671.0,0.058589]
[1644696964147,0.04439063,42675.0,42671.0,0.058589]
[1644696965143,0.04439063,42675.0,42671.0,0.05915385]
[1644696965541,0.07655737,42674.0,42671.0,0.05915385]
[1644696966143,0.07655737,42674.0,42671.0,0.058589]
[1644696967343,0.07655737,42674.0,42666.0,0.347181]
[1644696967543,0.07655737,42674.0,42670.0,0.00056486]
[1644696967743,0.07655737,42674.0,42670.0,0.05915586]
[1644696968390,0.07655737,42674.0,42670.0,0.058591]
[1644696968591,0.07655737,42674.0,42670.0,0.05915586]
[1644696968890,0.04439063,42672.0,42670.0,0.05915586]
[1644696969690,0.04439063,42672.0,42670.0,0.058591]
[1644696969890,0.04439063,42672.0,42668.0,0.17576]
[1644696969891,0.04439063,42672.0,42669.0,0.00056741]
[1644696970891,0.04439063,42672.0,42666.0,0.347181]
[1644696971091,0.04439063,42672.0,42668.0,0.05915842]
[1644696971294,0.04439063,42672.0,42669.0,0.05859]
[1644696974140,0.24350688,42675.0,42669.0,0.05859]
[1644696974340,0.04439063,42670.0,42669.0,0.05859]
[1644696975386,0.04428894,42670.0,42669.0,0.05859]
[1644696977086,0.04428894,42670.0,42668.0,0.058591]
[1644696979144,0.04428894,42670.0,42667.0,0.00056887]
[1644696979340,0.07540458,42673.0,42666.0,0.347181]
[1644696979539,0.04428894,42668.0,42667.0,0.00056887]
[1644696980541,0.04428894,42668.0,42666.0,0.347181]
[1644696982142,0.04428894,42668.0,42666.0,0.405771]
[1644696982447,0.04428894,42668.0,42667.0,0.27168172]
[1644696983091,0.04428894,42668.0,42666.0,0.405771]
[1644696983891,0.04428894,42668.0,42666.0,0.347181]
[1644696984093,0.08496542,42667.0,42666.0,0.347181]
[1644696984893,0.12925436,42667.0,42666.0,0.347181]
[1644696988048,0.12925436,42667.0,42666.0,0.23]
[1644696990690,0.12925436,42667.0,42666.0,0.23113129]
[1644696991993,0.12925436,42667.0,42666.0,0.28972529]
[1644696996040,0.0766058,42668.0,42666.0,0.28972529]
[1644696996240,0.0766058,42668.0,42666.0,0.55287323]
[1644696996643,0.0766058,42668.0,42666.0,0.28972529]
[1644696996841,0.0766058,42668.0,42666.0,0.54948236]
[1644696997042,0.05,42676.0,42666.0,0.54948236]
[1644696997550,0.05,42676.0,42669.0,0.00056725]
[1644696997742,0.05,42676.0,42670.0,0.05859]
[1644696997992,0.05,42677.0,42672.0,0.05859]
[1644696998391,0.00056712,42679.0,42674.0,0.24123456]
[1644696998592,0.30070622,42680.0,42675.0,0.175724]
[1644696998793,0.00056713,42679.0,42678.0,0.11714]
[1644696999291,0.23477044,42688.0,42678.0,0.11714]
[1644696999491,0.23477044,42688.0,42681.0,0.22493566]
[1644696999492,0.001,42688.0,42681.0,0.22493566]
[1644696999691,0.001,42688.0,42683.0,0.058568]
[1644697000491,0.07573902,42686.0,42683.0,0.058568]
[1644697000900,0.07573902,42686.0,42683.0,0.175702]
[1644697004341,0.00060257,42687.0,42683.0,0.44264185]
[1644697004542,0.001,42688.0,42683.0,0.44264185]
[1644697004745,0.00060257,42687.0,42683.0,0.175702]
[1644697005689,0.001,42688.0,42683.0,0.175702]
[1644697006090,0.00060256,42687.0,42683.0,0.405702]
[1644697006388,0.06953958,42684.0,42683.0,0.405702]
[1644697010863,0.06953958,42684.0,42683.0,0.288568]
[1644697011661,0.3667254,42684.0,42683.0,0.288568]
[1644697011862,0.06752088,42682.0,42681.0,0.117138]
[1644697012565,0.35938731,42682.0,42681.0,0.117138]
[1644697012764,0.35938731,42682.0,42681.0,0.17572]
[1644697013197,0.35938731,42682.0,42678.0,0.117163]
[1644697013897,0.06752088,42682.0,42678.0,0.234325]
[1644697014597,0.06834294,42682.0,42678.0,0.234325]
[1644697015397,0.06774078,42682.0,42678.0,0.234325]
[1644697015596,0.06834294,42682.0,42678.0,0.234325]
[1644697015999,0.20090335,42680.0,42678.0,0.234325]
[1644697016207,0.33203745,42679.0,42669.0,0.234284]
[1644697016400,0.28203745,42679.0,42678.0,0.18]
[1644697016648,0.28203745,42679.0,42669.0,0.37843654]
[1644697016842,0.28203745,42679.0,42669.0,0.234284]
[1644697017041,0.23133084,42677.0,42669.0,0.234284]
[1644697017241,0.08255532,42675.0,42672.0,0.058592]
[1644697017442,0.08255532,42675.0,42673.0,0.058592]
[1644697018041,0.08255532,42675.0,42672.0,0.05919442]
[1644697019044,0.08255532,42675.0,42672.0,0.058592]
[1644697025242,0.06774078,42682.0,42672.0,0.058592]
[1644697025443,0.00060231,42680.0,42674.0,0.05]
[1644697025842,0.00060231,42680.0,42672.0,0.42513659]
[1644697026241,0.26558326,42682.0,42672.0,0.42513659]
[1644697026443,0.00021082,42680.0,42672.0,0.42513659]
[1644697026647,0.06438861,42677.0,42672.0,0.42513659]
[1644697027245,0.06438861,42677.0,42672.0,0.234305]
[1644697027444,0.06438861,42677.0,42672.0,0.288592]
[1644697028096,0.05168861,42677.0,42672.0,0.288592]
[1644697028898,0.05168861,42677.0,42673.0,0.05]
[1644697029100,0.05168861,42677.0,42673.0,0.1]
[1644697029300,0.05168861,42677.0,42673.0,0.15]
[1644697030099,0.05168861,42677.0,42673.0,0.15060493]
[1644697030301,0.05168861,42677.0,42673.0,0.10060493]
[1644697031000,0.05168861,42677.0,42675.0,0.05]
[1644697031408,0.05154105,42677.0,42675.0,0.05]
[1644697031651,0.05154105,42677.0,42676.0,0.05]
[1644697032142,0.05154105,42677.0,42673.0,0.10060493]
[1644697032343,0.05154105,42677.0,42673.0,0.1]
[1644697032543,0.05154105,42677.0,42674.0,0.00060492]
[1644697032944,0.03884105,42677.0,42674.0,0.00060492]
[1644697033145,0.03884105,42677.0,42674.0,0.05917792]
[1644697033346,0.03884105,42677.0,42674.0,0.10917792]
[1644697033547,0.03884105,42677.0,42674.0,0.05]
[1644697033746,0.03884105,42677.0,42673.0,0.10060447]
[1644697033946,0.03884105,42677.0,42673.0,0.14989932]
[1644697034349,0.03884105,42677.0,42673.0,0.00060447]
[1644697034745,0.03884105,42677.0,42672.0,0.43943557]
[1644697035147,0.03884105,42677.0,42675.0,0.05]
[1644697035403,0.00021085,42680.0,42674.0,0.05]
[1644697035604,0.00021085,42680.0,42674.0,0.108573]
[1644697035805,0.06774078,42682.0,42676.0,0.058573]
[1644697036006,0.06752088,42682.0,42676.0,0.058573]
[1644697036206,0.00021086,42680.0,42677.0,0.058573]
[1644697036706,0.07956766,42679.0,42677.0,0.058573]
[1644697038209,0.02159767,42679.0,42677.0,0.058573]
[1644697040439,0.01573996,42679.0,42677.0,0.058573]
[1644697041739,0.00573996,42679.0,42677.0,0.058573]
[1644697061745,0.00573996,42679.0,42676.0,0.175719]
[1644697066207,2.60396592,42679.0,42676.0,0.175719]
[1644697066407,0.28807161,42678.0,42676.0,0.175719]
[1644697066807,0.00565877,42679.0,42676.0,0.175719]
[1644697082205,0.00565877,42679.0,42676.0,0.17562933]
[1644697091510,0.00565877,42679.0,42676.0,0.05848333]
[1644697091946,0.00565877,42679.0,42676.0,0.11706733]
[1644697097793,0.00565877,42679.0,42676.0,0.05848333]